fUST/lending_fUST_20250621
["ID","MTS","AMOUNT","RATE_DAILY","PERIOD"]
[366788770,1750456233622,-1078.82440416,0.00022452,7]
[366788771,1750456233633,-460.0,0.00022465,2]
[366788772,1750456233643,-460.0,0.00022465,2]
[366788773,1750456233652,-460.0,0.00022465,2]
[366788774,1750456233663,-150.0,0.000225,2]
[366788775,1750456233673,-1078.82440416,0.0002259,7]
[366788776,1750456233683,-160.0,0.0002259,3]
[366788777,1750456233694,-1000.0,0.00022631,5]
[366788778,1750456233703,-215.0738,0.00022688,2]
[366788779,1750456233714,-1078.82440416,0.00022728,7]
[366788780,1750456233723,-460.0,0.00022739,2]
[366788781,1750456233733,-460.0,0.00022739,2]
[366788782,1750456233743,-460.0,0.00022739,2]
[366788783,1750456233753,-168.0,0.00022858,2]
[366788784,1750456233764,-188.03215681,0.00022859,2]
[366788785,1750456233774,-1078.82440416,0.00022866,8]
[366788786,1750456233784,-406.0,0.00022866,2]
[366788787,1750456233794,-1078.82440416,0.00023003,8]
[366788788,1750456233804,-537.5534384,0.00023013,2]
[366788789,1750456233814,-1078.82440416,0.00023141,8]
[366788790,1750456233824,-203.14340778,0.00023152,2]
[366788791,1750456233835,-411.7517879,0.00023165,2]
[366788792,1750456233845,-500.0,0.00023184,2]
[366788793,1750456233855,-460.0,0.00023207,2]
[366788794,1750456233865,-457.68083236,0.00023207,2]
[366788795,1750456233875,-460.0,0.00023207,2]
[366788796,1750456233886,-523.84082663,0.00023207,2]
[366788797,1750456233896,-460.0,0.00023207,2]
[366788798,1750456233907,-458.56347625,0.00023207,2]
[366788799,1750456233916,-460.0,0.00023207,2]
[366788800,1750456233926,-540.60008619,0.00023207,2]
[366788801,1750456233935,-460.0,0.00023207,2]
[366788802,1750456233945,-460.0,0.00023207,2]
[366788803,1750456233955,-460.0,0.00023207,2]
[366788804,1750456233964,-325.13633195,0.00023207,2]
[366788805,1750456233974,-460.0,0.00023207,2]
[366788806,1750456233984,-460.0,0.00023207,2]
[366788807,1750456233994,-470.0,0.00023207,2]
[366788808,1750456234003,-460.0,0.00023207,2]
[366788809,1750456234013,-460.0,0.00023207,2]
[366788810,1750456234023,-460.0,0.00023207,2]
[366788811,1750456234032,-460.0,0.00023207,2]
[366788812,1750456234042,-174.7671206,0.00023207,2]
[366788813,1750456234052,-460.0,0.00023207,2]
[366788814,1750456234062,-473.47,0.00023207,2]
[366788815,1750456234072,-460.0,0.00023207,2]
[366788816,1750456234082,-468.74400031,0.00023207,2]
[366788817,1750456234092,-460.0,0.00023207,2]
[366788818,1750456234102,-460.0,0.00023207,2]
[366788819,1750456234111,-460.0,0.00023207,2]
[366788820,1750456234122,-460.0,0.00023207,2]
[366788821,1750456234132,-460.0,0.00023207,2]
[366788822,1750456234142,-460.0,0.00023207,2]
[366788823,1750456234152,-460.0,0.00023207,2]
[366788824,1750456234162,-460.0,0.00023207,2]
[366788825,1750456234173,-460.0,0.00023207,2]
[366788826,1750456234184,-410.0,0.00023207,2]
[366788827,1750456234195,-460.0,0.00023207,2]
[366788828,1750456234205,-440.0,0.00023207,2]
[366788829,1750456234216,-430.0,0.00023207,2]
[366788830,1750456234226,-460.0,0.00023207,2]
[366788831,1750456234238,-460.0,0.00023207,2]
[366788832,1750456234394,-345.13168937,0.00023207,2]
[366788833,1750456234404,-460.0,0.00023207,2]
[366788834,1750456234414,-460.0,0.00023207,2]
[366788835,1750456234424,-460.0,0.00023207,2]
[366788836,1750456234434,-543.71888429,0.00023207,2]
[366788837,1750456234443,-460.0,0.00023207,2]
[366788838,1750456234453,-460.0,0.00023207,2]
[366788839,1750456234463,-460.0,0.00023207,2]
[366788840,1750456234472,-460.0,0.00023207,2]
[366788841,1750456234483,-170.54197152,0.00023207,2]
[366788842,1750456234493,-460.0,0.00023207,2]
[366788843,1750456234503,-460.0,0.00023207,2]
[366788844,1750456234513,-430.0,0.00023207,2]
[366788845,1750456234523,-460.0,0.00023207,2]
[366788846,1750456234538,-401.71038396,0.00023207,2]
[366788847,1750456234549,-367.14667107,0.00023207,2]
[366788848,1750456234558,-460.0,0.00023207,2]
[366788849,1750456234568,-390.0,0.00023207,2]
[366788850,1750456234578,-470.0,0.00023207,2]
[366788851,1750456234588,-460.0,0.00023207,2]
[366788852,1750456234598,-460.0,0.00023207,2]
[366788853,1750456234608,-440.0,0.00023207,2]
[366788854,1750456234617,-460.0,0.00023207,2]
[366788855,1750456234627,-460.0,0.00023207,2]
[366788856,1750456234637,-460.0,0.00023207,2]
[366788857,1750456234646,-490.0,0.00023207,2]
[366788858,1750456234656,-430.0,0.00023207,2]
[366788859,1750456234666,-460.0,0.00023207,2]
[366788860,1750456234676,-500.0,0.00023207,2]
[366788861,1750456234686,-460.0,0.00023207,2]
[366788862,1750456234696,-460.0,0.00023207,2]
[366788863,1750456234706,-500.0,0.00023207,2]
[366788864,1750456234715,-460.0,0.00023207,2]
[366788865,1750456234725,-692.37,0.00023207,2]
[366788866,1750456234734,-460.0,0.00023207,2]
[366788867,1750456234744,-460.0,0.00023207,2]
[366788868,1750456234753,-460.0,0.00023207,2]
[366788869,1750456234763,-460.0,0.00023207,2]
[366788870,1750456234773,-500.0,0.00023207,2]
[366788871,1750456234783,-460.0,0.00023207,2]
[366788872,1750456234793,-500.0,0.00023208,2]
[366788873,1750456234803,-4702.37,0.00023232,2]
[366788874,1750456234812,-507.50971841,0.00023242,2]
[366788875,1750456234822,-374.84568991,0.00023279,2]
[366788876,1750456234831,-434.29047579,0.00023279,2]
[366788877,1750456234843,-442.02298009,0.00023279,2]
[366788878,1750456234852,-1078.82440416,0.00023279,8]
[366788879,1750456234860,-170.689032,0.00023289,2]
[366788880,1750456234870,-1168.02,0.000233,7]
[366788881,1750456234880,-500.0,0.00023326,2]
[366788882,1750456234890,-411.7517879,0.00023369,2]
[366788883,1750456234899,-188.03215681,0.00023379,2]
[366788884,1750456234911,-500.0,0.00023385,2]
[366788885,1750456234920,-1078.82440416,0.00023417,9]
[366788886,1750456234930,-500.0,0.00023421,2]
[366788887,1750456234940,-190.0,0.00023437,2]
[366788888,1750456234950,-460.0,0.00023481,2]
[366788889,1750456234959,-460.0,0.00023481,2]
[366788890,1750456234968,-460.0,0.00023481,2]
[366788891,1750456234978,-473.47,0.00023481,2]
[366788892,1750456234988,-460.0,0.00023481,2]
[366788893,1750456234998,-460.0,0.00023481,2]
[366788894,1750456235007,-410.0,0.00023481,2]
[366788895,1750456235018,-460.0,0.00023481,2]
[366788896,1750456235028,-460.0,0.00023481,2]
[366788897,1750456235038,-460.0,0.00023481,2]
[366788898,1750456235048,-460.0,0.00023481,2]
[366788899,1750456235057,-460.0,0.00023481,2]
[366788900,1750456235067,-460.0,0.00023481,2]
[366788901,1750456235077,-460.0,0.00023481,2]
[366788902,1750456235086,-197.86909335,0.00023481,2]
[366788903,1750456235096,-460.0,0.00023481,2]
[366788904,1750456235106,-460.0,0.00023481,2]
[366788905,1750456235115,-460.0,0.00023481,2]
[366788906,1750456235124,-460.0,0.00023481,2]
[366788907,1750456235133,-460.0,0.00023481,2]
[366788908,1750456235143,-460.0,0.00023481,2]
[366788909,1750456235152,-358.25511135,0.00023481,2]
[366788910,1750456235162,-460.0,0.00023481,2]
[366788911,1750456235171,-500.0,0.00023481,2]
[366788912,1750456235182,-460.0,0.00023481,2]
[366788913,1750456235194,-692.37,0.00023481,2]
[366788914,1750456235203,-460.0,0.00023481,2]
[366788915,1750456235212,-460.0,0.00023481,2]
[366788916,1750456235223,-294.65888052,0.00023481,2]
[366788917,1750456235234,-500.0,0.00023495,2]
[366788918,1750456235243,-460.0,0.00023519,2]
[366788919,1750456235253,-460.0,0.00023519,2]
[366788920,1750456235267,-460.0,0.00023519,2]
[366788921,1750456235278,-460.0,0.00023519,2]
[366788922,1750456235288,-460.0,0.00023519,2]
[366788923,1750456235297,-460.0,0.00023519,2]
[366788924,1750456235308,-1098.824182,0.0002352,4]
[366788925,1750456235318,-359.58,0.00023551,3]
[366788926,1750456235327,-1078.82440416,0.00023555,9]
[366788927,1750456235338,-500.0,0.00023566,2]
[366788928,1750456235347,-500.0,0.000236,2]
[366788929,1750456235358,-500.0,0.000236,2]
[366788930,1750456235368,-500.0,0.00023659,2]
[366788931,1750456235378,-500.0,0.00023666,2]
[366788932,1750456235389,-14411.27069226,0.00023683,2]
[366788933,1750456235489,-5185.57400076,0.00023683,2]
[366788974,1750456237925,-500.0,0.00021317,2]
[366788976,1750456237935,-500.0,0.00021317,2]
[366788978,1750456237945,-500.0,0.00021317,2]
[366788980,1750456237955,-500.0,0.00021317,2]
[366788982,1750456237965,-500.0,0.00021317,2]
[366788984,1750456237975,-500.0,0.00021317,2]
[366788986,1750456237986,-500.0,0.00021317,2]
[366788988,1750456237995,-460.0,0.00021917,2]
[366788990,1750456238006,-460.0,0.00021917,2]
[366788992,1750456238017,-976.15083327,0.00023683,2]
[366788994,1750456238027,-411.7517881,0.00023687,2]
[366788996,1750456238037,-160.0,0.00023692,2]
[366788999,1750456238047,-500.0,0.00023692,2]
[366789001,1750456238056,-1078.82440416,0.00023693,9]
[366789003,1750456238067,-319.0,0.000237,2]
[366789004,1750456238077,-168.0,0.000237,2]
[366789006,1750456238087,-460.0,0.00023755,2]
[366789008,1750456238097,-460.0,0.00023755,2]
[366789011,1750456238107,-460.0,0.00023755,2]
[366789013,1750456238117,-460.0,0.00023755,2]
[366789014,1750456238126,-460.0,0.00023755,2]
[366789016,1750456238136,-460.0,0.00023755,2]
[366789018,1750456238146,-460.0,0.00023755,2]
[366789020,1750456238156,-460.0,0.00023755,2]
[366789022,1750456238166,-460.0,0.00023755,2]
[366789024,1750456238176,-460.0,0.00023755,2]
[366789026,1750456238191,-460.0,0.00023755,2]
[366789029,1750456238201,-501.85790702,0.00023755,2]
[366789031,1750456238212,-460.0,0.00023755,2]
[366789032,1750456238221,-692.37,0.00023755,2]
[366789035,1750456238231,-460.0,0.00023755,2]
[366789036,1750456238240,-460.0,0.00023755,2]
[366789038,1750456238250,-50292.02094037,0.0002376,2]
[366789040,1750456238261,-500.0,0.00023783,2]
[366789042,1750456238271,-460.0,0.00023793,2]
[366789044,1750456238281,-500.0,0.00023798,2]
[366789046,1750456238290,-151.0,0.000238,10]
[366789048,1750456238301,-800.0,0.00023822,2]
[366789050,1750456238310,-1078.82440416,0.00023831,10]
[366789052,1750456238320,-188.03215681,0.000239,2]
[366789054,1750456238329,-500.0,0.00023917,2]
[366789056,1750456238339,-1078.82440416,0.00023969,10]
[366789058,1750456238350,-500.0,0.00023973,2]
[366789060,1750456238359,-500.0,0.00023973,2]
[366789062,1750456238369,-500.0,0.00023973,2]
[366789064,1750456238378,-500.0,0.00023973,2]
[366789065,1750456238388,-500.37286074,0.00023973,2]
[366789066,1750456238399,-502.00418088,0.00023973,2]
[366789068,1750456238408,-159.67165378,0.00023973,2]
[366789070,1750456238418,-509.41600529,0.00023973,2]
[366789072,1750456238430,-500.0,0.00023973,2]
[366789074,1750456238439,-500.0,0.00023973,2]
[366789076,1750456238450,-500.0,0.00023973,2]
[366789078,1750456238459,-500.0,0.00023973,2]
[366789080,1750456238469,-500.0,0.00023973,2]
[366789082,1750456238479,-500.0,0.00023973,2]
[366789084,1750456238488,-500.0,0.00023973,2]
[366789086,1750456238498,-500.0,0.00023973,2]
[366789087,1750456238508,-600.0,0.00023973,2]
[366789089,1750456238518,-500.0,0.00023973,2]
[366789091,1750456238528,-500.0,0.00023973,2]
[366789093,1750456238538,-500.0,0.00023973,2]
[366789095,1750456238548,-500.0,0.00023973,2]
[366789098,1750456238558,-500.0,0.00023973,2]
[366789100,1750456238568,-500.0,0.00023973,2]
[366789102,1750456238577,-500.0,0.00023973,2]
[366789104,1750456238587,-500.0,0.00023973,2]
[366789105,1750456238597,-500.0,0.00023973,2]
[366789107,1750456238607,-503.32563037,0.00023973,2]
[366789109,1750456238617,-264.034459,0.00023973,2]
[366789111,1750456238627,-500.0,0.00023973,2]
[366789113,1750456238637,-500.0,0.00023998,2]
[366789115,1750456238647,-441.12421178,0.00023999,2]
[366789118,1750456238663,-401.27565083,0.00023999,2]
[366789120,1750456238673,-460.0,0.00023999,2]
[366789122,1750456238683,-200.0,0.00023999,30]
[366789124,1750456238692,-500.0,0.00023999,7]
[366789126,1750456238702,-460.0,0.00023999,2]
[366789127,1750456238711,-542.67142026,0.00023999,2]
[366789129,1750456238721,-460.0,0.00023999,2]
[366789131,1750456238730,-430.0,0.00023999,2]
[366789133,1750456238740,-460.0,0.00023999,2]
[366789135,1750456238750,-460.0,0.00023999,2]
[366789137,1750456238760,-460.0,0.00023999,2]
[366789139,1750456238770,-500.0,0.00023999,2]
[366789141,1750456238780,-460.0,0.00023999,2]
[366789143,1750456238791,-500.0,0.00023999,2]
[366789145,1750456238800,-500.0,0.00023999,2]
[366789147,1750456238810,-500.0,0.00023999,2]
[366789149,1750456238819,-500.0,0.00023999,2]
[366789154,1750456238927,-500.0,0.00023999,2]
[366789155,1750456238939,-500.0,0.00023999,2]
[366789156,1750456238949,-538.84438006,0.00023999,2]
[366789157,1750456238959,-460.0,0.00023999,2]
[366789158,1750456238969,-460.0,0.00023999,2]
[366789159,1750456238979,-470.0,0.00023999,2]
[366789160,1750456238989,-574.61,0.00023999,2]
[366789161,1750456239011,-460.0,0.00023999,2]
[366789162,1750456239021,-460.0,0.00023999,2]
[366789163,1750456239031,-550.0,0.00023999,2]
[366789164,1750456239042,-460.0,0.00023999,2]
[366789165,1750456239052,-460.0,0.00023999,2]
[366789166,1750456239062,-460.0,0.00023999,2]
[366789167,1750456239071,-500.0,0.00023999,2]
[366789168,1750456239082,-490.0,0.00023999,2]
[366789169,1750456239091,-460.0,0.00023999,2]
[366789170,1750456239102,-460.0,0.00023999,2]
[366789171,1750456239112,-460.0,0.00023999,2]
[366789172,1750456239122,-460.0,0.00023999,2]
[366789173,1750456239132,-460.0,0.00023999,2]
[366789174,1750456239142,-460.0,0.00023999,2]
[366789176,1750456239152,-460.0,0.00023999,2]
[366789177,1750456239162,-460.0,0.00023999,2]
[366789178,1750456239172,-460.0,0.00023999,2]
[366789179,1750456239185,-427.01916471,0.00023999,2]
[366789180,1750456239195,-490.0,0.00023999,2]
[366789181,1750456239205,-460.0,0.00023999,2]
[366789182,1750456239215,-529.65464783,0.00023999,2]
[366789183,1750456239226,-460.0,0.00023999,2]
[366789185,1750456239237,-460.0,0.00023999,2]
[366789187,1750456239246,-460.0,0.00023999,2]
[366789188,1750456239257,-431.15629344,0.00023999,2]
[366789189,1750456239268,-460.0,0.00023999,2]
[366789190,1750456239278,-460.0,0.00023999,2]
[366789191,1750456239287,-460.0,0.00023999,2]
[366789192,1750456239297,-567.08031143,0.00023999,2]
[366789193,1750456239307,-460.0,0.00023999,2]
[366789194,1750456239316,-460.0,0.00023999,2]
[366789195,1750456239326,-460.0,0.00023999,2]
[366789196,1750456239336,-460.0,0.00023999,2]
[366789197,1750456239345,-460.0,0.00023999,2]
[366789198,1750456239355,-767.96,0.00023999,2]
[366789199,1750456239365,-460.0,0.00023999,2]
[366789200,1750456239375,-1141.11,0.00023999,2]
[366789201,1750456239385,-460.0,0.00023999,2]
[366789202,1750456239395,-460.0,0.00023999,2]
[366789203,1750456239404,-460.0,0.00023999,2]
[366789204,1750456239414,-460.0,0.00023999,2]
[366789205,1750456239424,-500.0,0.00023999,2]
[366789206,1750456239434,-460.0,0.00023999,2]
[366789207,1750456239444,-460.0,0.00023999,2]
[366789208,1750456239454,-460.0,0.00023999,2]
[366789209,1750456239463,-605.12587577,0.00023999,2]
[366789211,1750456239473,-500.0,0.00023999,2]
[366789213,1750456239483,-500.0,0.00023999,2]
[366789215,1750456239493,-364.54309428,0.00023999,2]
[366789216,1750456239502,-460.0,0.00023999,2]
[366789218,1750456239512,-500.0,0.00023999,2]
[366789219,1750456239521,-460.0,0.00023999,2]
[366789220,1750456239531,-509.8947904,0.00023999,2]
[366789221,1750456239540,-460.0,0.00023999,2]
[366789222,1750456239550,-1563.434122,0.00024,2]
[366789223,1750456239559,-632.45498733,0.00024,2]
[366789224,1750456239569,-1035.3114026,0.00024,2]
[366789225,1750456239580,-554198.07457433,0.00024,2]
[366789226,1750456239595,-1231.47,0.00024,2]
[366789227,1750456239607,-3640.93368004,0.00024,2]
[366789228,1750456239619,-391.32328805,0.00024,2]
[366789229,1750456239631,-722.883952,0.00024,2]
[366789230,1750456239646,-132423.14664157,0.00024,2]
[366789231,1750456239657,-8075.7820156,0.00024,2]
[366789232,1750456239673,-500.0,0.00021317,2]
[366789233,1750456239683,-2000.8274349,0.00024,2]
[366789244,1750456240115,-0.79581056,0.00021317,2]
[366789245,1750456240132,-499.20418944,0.00021317,2]
[366789246,1750456240143,-500.0,0.00021317,2]
[366789247,1750456240153,-500.0,0.00021317,2]
[366789248,1750456240162,-514.1513353,0.00021917,2]
[366789250,1750456240172,-460.0,0.00021917,2]
[366789252,1750456240184,-460.0,0.00023207,2]
[366789254,1750456240194,-460.0,0.00023207,2]
[366789256,1750456240203,-460.0,0.00023481,2]
[366789258,1750456240212,-460.0,0.00023481,2]
[366789260,1750456240222,-460.0,0.00023755,2]
[366789261,1750456240231,-460.0,0.00023755,2]
[366789263,1750456240241,-40666.13477678,0.00024,2]
[366789318,1750456242930,-156.46949778,0.00020425,2]
[366789320,1750456242941,-355.25,0.0002399,10]
[366789322,1750456242950,-1724.32675182,0.00024,2]
[366789324,1750456242960,-846.08887863,0.00024,30]
[366789326,1750456242969,-4378.46323853,0.00024,30]
[366789334,1750456243042,-11573.67846408,0.00024,30]
[366789523,1750456245926,-300.50674683,0.00023999,2]
[366789528,1750456245984,-159.49325317,0.00023999,2]
[366789529,1750456245994,-249.72190273,0.00024,30]
[366790667,1750456329847,193.89639507,0.000222,69]
[366790670,1750456648891,201.908662,0.00013699,2]
[366790671,1750456819212,873.68702219,0.00023894,120]
[366790675,1750457279822,-281.01849396,0.00020071,2]
[366790705,1750457432249,-129.00683404,0.00020071,2]
[366790706,1750457432259,-201.908662,0.00020187,2]
[366790708,1750457432269,-666.0,0.00020314,2]
[366790709,1750457432278,-387.7628196,0.00020423,2]
[366790711,1750457432288,-167.504766,0.00020699,2]
[366790712,1750457432298,-300.0,0.00020766,2]
[366790713,1750457432307,-1200.0,0.00020766,2]
[366790714,1750457432317,-24900.0,0.00020767,2]
[366790715,1750457432327,-162.855,0.00020767,2]
[366790716,1750457432336,-230.06456406,0.00021296,2]
[366790717,1750457432346,-836.27303475,0.00021296,2]
[366790718,1750457432356,-160.0,0.00021296,2]
[366790719,1750457432366,-424.85694595,0.00021296,2]
[366790720,1750457432375,-160.0,0.00021296,2]
[366790721,1750457432385,-213.51557418,0.00021296,2]
[366790722,1750457432394,-3000.0,0.000219,2]
[366790723,1750457432403,-258.8,0.000219,2]
[366790724,1750457432413,-1006.88770225,0.000219,6]
[366790725,1750457432422,-500.0,0.00021903,7]
[366790726,1750457432433,-160.0,0.00021903,2]
[366790727,1750457432443,-3000.0,0.0002191,2]
[366790728,1750457432452,-500.0,0.00021916,2]
[366790729,1750457432462,-188.09478794,0.00021916,2]
[366790730,1750457432472,-500.0,0.00021916,2]
[366790731,1750457432483,-500.0,0.00021916,2]
[366790732,1750457432492,-500.0,0.00021916,2]
[366790733,1750457432501,-500.0,0.00021916,2]
[366790734,1750457432511,-551.96230679,0.00021916,2]
[366790735,1750457432520,-450.0,0.00021916,2]
[366790736,1750457432530,-440.0,0.00021917,2]
[366790737,1750457432539,-461.78672993,0.00021917,2]
[366790738,1750457432549,-460.0,0.00021917,2]
[366790739,1750457432558,-164.1306636,0.00021917,2]
[366790740,1750457432568,-467.24268139,0.00021917,2]
[366790741,1750457432579,-460.0,0.00021917,2]
[366790742,1750457432588,-460.0,0.00021917,2]
[366790743,1750457432597,-430.0,0.00021917,2]
[366790744,1750457432606,-460.0,0.00021917,2]
[366790745,1750457432616,-460.0,0.00021917,2]
[366790746,1750457432625,-460.0,0.00021917,2]
[366790747,1750457432635,-500.0,0.00021917,2]
[366790748,1750457432644,-500.0,0.00021917,2]
[366790749,1750457432653,-460.0,0.00021917,2]
[366790750,1750457432665,-263.34692838,0.00021917,2]
[366790786,1750457438108,-247.25192845,0.000218,2]
[366790787,1750457438120,-196.65307162,0.00021917,2]
[366790788,1750457438130,-17.09499993,0.00021917,2]
[366790789,1750457438142,-442.90500007,0.00021917,2]
[366790790,1750457438152,-500.0,0.00021917,2]
[366790792,1750457438162,-500.0,0.00021917,2]
[366790794,1750457438171,-500.0,0.00021917,2]
[366790795,1750457438180,-500.0,0.00021917,2]
[366790796,1750457438190,-500.0,0.00021917,2]
[366790797,1750457438199,-500.0,0.00021917,2]
[366790798,1750457438210,-476.53,0.00021917,2]
[366790799,1750457438220,-538.84438006,0.00021917,2]
[366790800,1750457438230,-460.0,0.00021917,2]
[366790801,1750457438241,-500.0,0.00021917,2]
[366790802,1750457438251,-460.0,0.00021917,2]
[366790803,1750457438261,-470.0,0.00021917,2]
[366790804,1750457438271,-574.61,0.00021917,2]
[366790805,1750457438281,-460.0,0.00021917,2]
[366790806,1750457438453,-460.0,0.00021917,2]
[366790807,1750457438464,-550.0,0.00021917,2]
[366790808,1750457438475,-460.0,0.00021917,2]
[366790809,1750457438487,-460.0,0.00021917,2]
[366790810,1750457438497,-460.0,0.00021917,2]
[366790811,1750457438507,-500.0,0.00021917,2]
[366790812,1750457438517,-490.0,0.00021917,2]
[366790813,1750457438527,-266.85749183,0.00021917,2]
[366790814,1750457438540,-193.14250817,0.00021917,2]
[366790815,1750457438551,-460.0,0.00021917,2]
[366790816,1750457438561,-460.0,0.00021917,2]
[366790817,1750457438571,-460.0,0.00021917,2]
[366790818,1750457438580,-32.10672799,0.00021917,2]
[366790819,1750457438592,-297.33576601,0.00021917,2]
[366790820,1750457438604,-130.557506,0.00021917,2]
[366790821,1750457438613,-343.99589643,0.00021917,2]
[366790822,1750457438625,-116.00410357,0.00021917,2]
[366790823,1750457438635,-509.8947904,0.00021917,2]
[366790824,1750457438645,-460.0,0.00021917,2]
[366790825,1750457438655,-460.0,0.00021917,2]
[366790826,1750457438668,-460.0,0.00021917,2]
[366790827,1750457438678,-460.0,0.00021917,2]
[366790828,1750457438687,-490.0,0.00021917,2]
[366790829,1750457438697,-460.0,0.00021917,2]
[366790830,1750457438708,-460.0,0.00021917,2]
[366790831,1750457438719,-460.0,0.00021917,2]
[366790832,1750457438732,-460.0,0.00021917,2]
[366790833,1750457438743,-460.0,0.00021917,2]
[366790834,1750457438754,-460.0,0.00021917,2]
[366790835,1750457438763,-529.65464783,0.00021917,2]
[366790836,1750457438773,-460.0,0.00021917,2]
[366790837,1750457438783,-431.15629344,0.00021917,2]
[366790838,1750457438794,-460.0,0.00021917,2]
[366790839,1750457438804,-460.0,0.00021917,2]
[366790840,1750457438813,-460.0,0.00021917,2]
[366790841,1750457438822,-460.0,0.00021917,2]
[366790842,1750457438831,-460.0,0.00021917,2]
[366790843,1750457438840,-460.0,0.00021917,2]
[366790844,1750457438851,-460.0,0.00021917,2]
[366790845,1750457438861,-460.0,0.00021917,2]
[366790846,1750457438870,-460.0,0.00021917,2]
[366790847,1750457438880,-460.0,0.00021917,2]
[366790848,1750457438889,-460.0,0.00021917,2]
[366790849,1750457438899,-460.0,0.00021917,2]
[366790850,1750457438908,-460.0,0.00021917,2]
[366790851,1750457438918,-460.0,0.00021917,2]
[366790852,1750457438933,-1235.0,0.00021917,2]
[366790853,1750457438943,-460.0,0.00021917,2]
[366790854,1750457438953,-460.0,0.00021917,2]
[366790855,1750457438963,-460.0,0.00021917,2]
[366790856,1750457438973,-460.0,0.00021917,2]
[366790857,1750457438983,-460.0,0.00021917,2]
[366790858,1750457438993,-931.86,0.00021917,2]
[366790859,1750457439004,-281.01849396,0.00021917,2]
[366790860,1750457439014,-460.0,0.00021917,2]
[366790861,1750457439025,-500.0,0.00021917,2]
[366790862,1750457439035,-500.0,0.00021917,2]
[366790863,1750457439044,-500.0,0.00021917,2]
[366790864,1750457439054,-364.54309428,0.00021917,2]
[366790865,1750457439064,-460.0,0.00021917,2]
[366790866,1750457439074,-501.85790702,0.00021917,2]
[366790867,1750457439083,-460.0,0.00021917,2]
[366790868,1750457439092,-659.77,0.00021917,2]
[366790869,1750457439103,-460.0,0.00021917,2]
[366790870,1750457439113,-864.3,0.00021917,2]
[366790871,1750457439123,-460.0,0.00021917,2]
[366790872,1750457439133,-460.0,0.00021917,2]
[366790873,1750457439144,-460.0,0.00021917,2]
[366790874,1750457439154,-460.0,0.00021917,2]
[366790875,1750457439164,-460.0,0.00021917,2]
[366790876,1750457439174,-605.12587577,0.00021917,2]
[366790877,1750457439184,-460.0,0.00021917,2]
[366790878,1750457439194,-468.74,0.00021917,2]
[366790879,1750457439204,-500.0,0.00021917,2]
[366790880,1750457439214,-460.0,0.00021917,2]
[366790881,1750457439224,-670.04,0.00021917,2]
[366790882,1750457439234,-460.0,0.00021917,2]
[366790883,1750457439244,-460.0,0.00021917,2]
[366790884,1750457439254,-559.51,0.00021917,2]
[366790885,1750457439264,-460.0,0.00021917,2]
[366790886,1750457439274,-542.67142026,0.00021917,2]
[366790887,1750457439283,-460.0,0.00021917,2]
[366790888,1750457439294,-460.0,0.00021917,2]
[366790889,1750457439304,-427.01916471,0.00021917,2]
[366790890,1750457439314,-3000.0,0.0002192,2]